Workbook

Sheet melo
A1: Note | B1: C | C1: D | D1: E | E1: F | F1: G | G1: A | H1: B | I1: hC | J1: hD | K1: hE | L1: hF | M1: hG | N1: hA | O1: hB
A2: Onpu | B2: 4 | C2: 2 | D2: 4 | E2: 4 | F2: 4 | G2: 4 | H2: 4 | I2: 4 | J2: 4 | K2: 4 | L2: 4 | M2: 4 | N2: 4 | O2: 4
A3: Oct | B3: =IF(LEFT(B$1,1)="u",-1,0)+IF(LEFT(B$1,1)="h",1,0) -> 0 | C3: =IF(LEFT(C$1,1)="u",-1,0)+IF(LEFT(C$1,1)="h",1,0) -> 0 | D3: 0 | E3: 0 | F3: 0 | G3: 0 | H3: 0 | I3: 1 | J3: 1 | K3: 1 | L3: 1 | M3: 1 | N3: 1 | O3: 1
A5: Hz | B5: =ROUND(VLOOKUP(RIGHT(B$1,1),NOTE!$A$2:$D$13,3+B3,0),0) -> 1047 | C5: =ROUND(VLOOKUP(RIGHT(C$1,1),NOTE!$A$2:$D$13,3+C3,0),0) -> 1175 | D5: =ROUND(VLOOKUP(RIGHT(D$1,1),NOTE!$A$2:$D$13,3+D3,0),0) -> 1319 | E5: =ROUND(VLOOKUP(RIGHT(E$1,1),NOTE!$A$2:$D$13,3+E3,0),0) -> 1397 | F5: =ROUND(VLOOKUP(RIGHT(F$1,1),NOTE!$A$2:$D$13,3+F3,0),0) -> 1568 | G5: =ROUND(VLOOKUP(RIGHT(G$1,1),NOTE!$A$2:$D$13,3+G3,0),0) -> 1760 | H5: =ROUND(VLOOKUP(RIGHT(H$1,1),NOTE!$A$2:$D$13,3+H3,0),0) -> 1976 | I5: =ROUND(VLOOKUP(RIGHT(I$1,1),NOTE!$A$2:$D$13,3+I3,0),0) -> 2093 | J5: =ROUND(VLOOKUP(RIGHT(J$1,1),NOTE!$A$2:$D$13,3+J3,0),0) -> 2349 | K5: =ROUND(VLOOKUP(RIGHT(K$1,1),NOTE!$A$2:$D$13,3+K3,0),0) -> 2637 | L5: =ROUND(VLOOKUP(RIGHT(L$1,1),NOTE!$A$2:$D$13,3+L3,0),0) -> 2794 | M5: =ROUND(VLOOKUP(RIGHT(M$1,1),NOTE!$A$2:$D$13,3+M3,0),0) -> 3136 | N5: =ROUND(VLOOKUP(RIGHT(N$1,1),NOTE!$A$2:$D$13,3+N3,0),0) -> 3520 | O5: =ROUND(VLOOKUP(RIGHT(O$1,1),NOTE!$A$2:$D$13,3+O3,0),0) -> 3951
A6: ms | B6: =NOTE!$I$2*B$2 -> 500 | C6: =NOTE!$I$2*C$2 -> 250 | D6: =NOTE!$I$2*D$2 -> 500 | E6: =NOTE!$I$2*E$2 -> 500 | F6: =NOTE!$I$2*F$2 -> 500 | G6: =NOTE!$I$2*G$2 -> 500 | H6: =NOTE!$I$2*H$2 -> 500 | I6: =NOTE!$I$2*I$2 -> 500 | J6: =NOTE!$I$2*J$2 -> 500 | K6: =NOTE!$I$2*K$2 -> 500 | L6: =NOTE!$I$2*L$2 -> 500 | M6: =NOTE!$I$2*M$2 -> 500 | N6: =NOTE!$I$2*N$2 -> 500 | O6: =NOTE!$I$2*O$2 -> 500
B7: =-INT(RAND()*60) -> -35 | C7: -40 | D7: =-INT(RAND()*60) -> -21 | E7: =-INT(RAND()*60) -> -16 | F7: -9 | G7: -37 | H7: -35 | I7: -1 | J7: -22 | K7: -36 | L7: -5 | M7: -19 | N7: -29 | O7: -10
A8: 音痴 | B8: =B5+B7 -> 1012 | C8: =C5+C7 -> 1135 | D8: 1298 | E8: 1381 | F8: 1559 | G8: 1723 | H8: 1941 | I8: 2092 | J8: =J5+J7 -> 2327 | K8: =K5+K7 -> 2601 | L8: =L5+L7 -> 2789 | M8: =M5+M7 -> 3117 | N8: =N5+N7 -> 3491 | O8: =O5+O7 -> 3941
A9: =A6 -> ms | B9: =NOTE!$I$2*B$2 -> 500 | C9: =NOTE!$I$2*C$2 -> 250 | D9: =NOTE!$I$2*D$2 -> 500 | E9: =NOTE!$I$2*E$2 -> 500 | F9: =NOTE!$I$2*F$2 -> 500 | G9: =NOTE!$I$2*G$2 -> 500 | H9: =NOTE!$I$2*H$2 -> 500 | I9: =NOTE!$I$2*I$2 -> 500 | J9: =NOTE!$I$2*J$2 -> 500 | K9: =NOTE!$I$2*K$2 -> 500 | L9: =NOTE!$I$2*L$2 -> 500 | M9: =NOTE!$I$2*M$2 -> 500 | N9: =NOTE!$I$2*N$2 -> 500 | O9: =NOTE!$I$2*O$2 -> 500
A11: ドレミファソラシ を CDEFGAB で入力する。
A12: 音の長さ 四分音符なら4 八分音符なら2
A13: 速度はNOTEシートで設定。
A15: 7行目は音の♭Hzを乱数で決定。
A16: 8行目に直接数値を入力してもよい。
A18: 上のボタンは正しい歌声
A19: 下のボタンは音が下がってる歌声

Sheet NOTE
B1: u | C1: 880 | D1: h | G1: 四分音符 | H1: ms | I1: 16
A2: C | B2: =C2/2 -> 523.2511306 | C2: =$C$1*2^(E2/12) -> 1046.502261 | D2: =C2*2 -> 2093.004522 | E2: 3 | G2: 120 | H2: =60*1000/G2 -> 500 | I2: =H2*4/I1 -> 125
A3: c | B3: =C3/2 -> 554.365262 | C3: 1108.730524 | D3: =C3*2 -> 2217.461048 | E3: 4
A4: D | B4: 587.3295358 | C4: 1174.659072 | D4: 2349.318143 | E4: 5
A5: d | B5: 622.2539674 | C5: 1244.507935 | D5: 2489.01587 | E5: 6
A6: E | B6: 659.2551138 | C6: 1318.510228 | D6: 2637.020455 | E6: 7
A7: F | B7: 698.4564629 | C7: 1396.912926 | D7: 2793.825851 | E7: 8
A8: f | B8: 739.9888454 | C8: 1479.977691 | D8: 2959.955382 | E8: 9
A9: G | B9: 783.990872 | C9: 1567.981744 | D9: 3135.963488 | E9: 10
A10: g | B10: 830.6093952 | C10: 1661.21879 | D10: 3322.437581 | E10: 11
A11: A | B11: 880 | C11: 1760 | D11: 3520 | E11: 12
A12: a | B12: 932.327523 | C12: 1864.655046 | D12: 3729.310092 | E12: 13
A13: B | B13: 987.7666025 | C13: 1975.533205 | D13: 3951.06641 | E13: 14
